bitfinex-derivatives/quotes_BNBF0:USTF0_20241231
["timestamp","ask_amount","ask_price","bid_price","bid_amount"]
[1735683623370,2.55334341,701.45,700.27,1.06802768]
[1735683623962,1.0636599,701.43,700.3,1.06802768]
[1735683624763,1.48968351,701.45,700.17,0.28564491]
[1735683634269,1.48968351,701.45,700.22,1.06802768]
[1735683635267,1.48968351,701.45,700.17,0.28564491]
[1735683643876,0.26257618,701.44,700.17,0.28564491]
[1735683644281,1.0636599,701.41,700.17,0.28564491]
[1735683644475,0.26257618,701.4,700.17,0.28564491]
[1735683644879,1.0636599,701.41,700.17,0.28564491]
[1735683645282,1.0636599,701.33,700.19,1.06802768]
[1735683645881,1.48989079,701.32,700.19,1.06802768]
[1735683646278,1.48989079,701.32,700.17,0.28564491]
[1735683673902,1.0636599,701.29,700.17,0.28564491]
[1735683674799,1.0636599,701.26,700.17,1.35367259]
[1735683675599,1.0636599,701.27,700.17,0.28564491]
[1735683676998,1.48989079,701.32,700.17,0.28564491]
[1735683691212,2.55355069,701.32,700.17,0.28564491]
[1735683692212,1.0636599,701.31,700.17,0.28564491]
[1735683694211,1.0636599,701.3,700.17,0.28564491]
[1735683695408,1.48989079,701.32,700.17,0.28564491]
[1735683696114,0.2626903,701.31,700.01,1.06802768]
[1735683696409,0.28518872,701.29,700.01,1.06802768]
[1735683696715,0.2626903,701.28,700.01,1.06802768]
[1735683697513,0.28519685,701.27,700.01,1.06802768]
[1735683697711,0.2626903,701.26,700.01,1.06802768]
[1735683697908,1.0636599,701.19,699.61,1.06802768]
[1735683698112,1.0636599,701.19,699.62,0.28586947]
[1735683698513,1.77593265,701.18,699.62,0.28586947]
[1735683698708,0.28523753,701.17,699.62,0.28586947]
[1735683699513,0.26270159,701.16,699.62,0.28586947]
[1735683699910,0.28524566,701.15,699.62,0.28586947]
[1735683700113,0.26270159,701.14,699.62,0.28586947]
[1735683700312,0.2852538,701.13,699.62,0.28586947]
[1735683701706,0.26270865,701.12,699.62,0.28586947]
[1735683701911,0.28526194,701.11,699.62,0.28586947]
[1735683705913,0.26270379,701.1,699.62,0.28586947]
[1735683708913,1.49069919,701.09,699.62,0.28586947]
[1735683709116,0.26270379,701.08,699.62,0.28586947]
[1735683709312,0.26270538,701.07,699.62,0.28586947]
[1735683709514,0.26270538,701.06,699.62,0.28586947]
[1735683709717,0.26270538,701.05,699.62,0.28586947]
[1735683709918,0.26270538,701.04,699.62,0.28586947]
[1735683710117,1.49069919,701.09,699.62,0.28586947]
[1735683710317,0.26270419,701.08,699.62,0.28586947]
[1735683712121,1.49069919,701.09,699.62,0.28586947]
[1735683712122,0.26270964,701.07,699.62,0.28586947]
[1735683712321,0.26270964,701.06,699.62,0.28586947]
[1735683712618,0.26270964,701.05,699.62,0.28586947]
[1735683712821,0.26270964,701.04,699.62,0.28586947]
[1735683713022,0.26270964,701.03,699.62,0.28586947]
[1735683713222,1.49069919,701.09,699.62,0.28586947]
[1735683713523,0.26270985,701.08,699.62,0.28586947]
[1735683714918,0.26271002,701.07,699.62,0.28586947]
[1735683715122,0.26271002,701.06,699.62,0.28586947]
[1735683715422,0.26271002,701.05,699.62,0.28586947]
[1735683715623,0.26271002,701.04,699.62,0.28586947]
[1735683715828,0.26271002,701.03,699.62,0.28586947]
[1735683716124,0.26271002,701.02,699.62,0.28586947]
[1735683716422,0.26271002,701.01,699.62,0.28586947]
[1735683716723,0.26271002,701.0,699.62,0.28586947]
[1735683716922,0.26271002,700.99,699.62,0.28586947]
[1735683717123,0.26271002,700.98,699.62,0.28586947]
[1735683717317,0.26271002,700.97,699.62,0.28586947]
[1735683717522,0.26271095,700.96,699.62,0.28586947]
[1735683717718,0.26271095,700.95,699.62,0.28586947]
[1735683717922,0.26271095,700.94,699.62,0.28586947]
[1735683718118,1.49069919,701.09,699.62,0.28586947]
[1735683718328,0.26271098,701.08,699.62,0.28586947]
[1735683719329,0.26271098,701.08,699.62,1.35389715]
[1735683720422,0.26271098,701.08,699.63,1.06802768]
[1735683721118,0.26271098,701.08,699.64,0.2858613]
[1735683723126,1.49069919,701.09,699.64,0.2858613]
[1735683723930,1.77596926,701.09,699.64,0.2858613]
[1735683731137,1.0636599,701.06,699.64,0.2858613]
[1735683732841,1.0636599,701.05,699.64,0.2858613]
[1735683733037,0.26273791,701.04,699.64,0.2858613]
[1735683733637,1.0636599,701.05,699.64,0.2858613]
[1735683733838,1.0636599,700.99,699.64,0.2858613]
[1735683734539,1.49083224,700.98,699.64,0.2858613]
[1735683744046,0.28531891,700.97,699.64,0.2858613]
[1735683744247,0.26276765,700.96,699.64,0.2858613]
[1735683744447,0.54809063,700.96,699.64,0.2858613]
[1735683744643,0.5480947,700.95,699.64,0.2858613]
[1735683744847,0.54809877,700.94,699.64,0.2858613]
[1735683745148,0.26276765,700.93,699.64,0.2858613]
[1735683745543,1.0636599,700.87,699.64,0.2858613]
[1735683745949,0.26277614,700.86,699.64,0.2858613]
[1735683746149,1.75385857,700.86,699.64,0.2858613]
[1735683746451,0.26277686,700.85,699.64,0.2858613]
[1735683746650,1.49108243,700.86,699.64,0.2858613]
[1735683756558,0.26278356,700.85,699.64,0.2858613]
[1735683756757,0.26277426,700.85,699.64,0.2858613]
[1735683757360,0.26277481,700.84,699.64,0.2858613]
[1735683757560,0.26277481,700.83,699.64,0.2858613]
[1735683757756,0.26277481,700.82,699.64,0.2858613]
[1735683757961,0.26277481,700.81,699.64,0.2858613]
[1735683758161,0.26277481,700.8,699.64,0.2858613]
[1735683758362,0.26277481,700.79,699.64,0.2858613]
[1735683758561,0.26277481,700.78,699.64,0.2858613]
[1735683758763,0.26277481,700.77,699.64,0.2858613]
[1735683758961,0.26277481,700.76,699.64,0.2858613]
[1735683759362,1.49106646,700.77,699.64,0.2858613]
[1735683759566,0.26277505,700.76,699.64,0.2858613]
[1735683759767,1.49106646,700.77,699.64,0.2858613]
[1735683759966,1.49106646,700.77,699.65,1.06802768]
[1735683761166,1.49106646,700.77,699.64,0.2858613]
[1735683770668,1.49106646,700.77,699.64,1.35388898]
[1735683771777,1.49106646,700.77,699.67,1.06802768]
[1735683773077,1.49106646,700.77,699.64,0.2858613]
[1735683779175,2.55472636,700.77,699.64,0.2858613]
[1735683780583,1.0636599,700.74,699.64,0.2858613]
[1735683781386,1.49106646,700.77,699.64,0.2858613]
[1735683801698,1.0636599,700.75,699.64,0.2858613]
[1735683804498,0.26279697,700.74,699.64,0.2858613]
[1735683804997,1.0636599,700.71,699.64,0.2858613]
[1735683807804,1.0636599,700.69,699.64,0.2858613]
[1735683808603,2.55485414,700.68,699.64,1.35388898]
[1735683809503,1.0636599,700.67,699.66,1.06802768]
[1735683810303,1.0636599,700.67,699.64,0.2858613]
[1735683810304,1.0636599,700.66,699.64,1.35388898]
[1735683811606,1.0636599,700.65,699.66,1.06802768]
[1735683812606,1.0636599,700.65,699.68,1.06802768]
[1735683813603,1.0636599,700.63,699.67,1.06802768]
[1735683814909,1.0636599,700.63,699.7,1.06802768]
[1735683816710,1.49119424,700.68,699.64,0.2858613]
[1735683820606,0.2629481,700.67,699.64,0.2858613]
[1735683821613,1.49119424,700.68,699.64,0.2858613]
[1735683822008,1.49119424,700.68,699.59,1.06802768]
[1735683822205,0.28544107,700.67,699.59,1.06802768]
[1735683822513,0.28544107,700.67,697.19,1.36320603]
[1735683822514,1.0636599,700.48,699.08,1.06802768]
[1735683822713,1.0636599,700.48,699.09,0.28608619]
[1735683823215,1.49201472,700.47,699.09,0.28608619]
[1735683823414,0.28552665,700.46,699.09,0.28608619]
[1735683826616,0.26294896,700.45,699.09,0.28608619]
[1735683828417,0.28552665,700.46,699.09,0.28608619]
[1735683828717,0.26294842,700.45,699.09,0.28608619]
[1735683829118,0.26294678,700.44,699.09,0.28608619]
[1735683829314,0.28552665,700.46,699.09,0.28608619]
[1735683859233,0.28552665,700.46,699.21,1.06802768]
[1735683859635,0.28552665,700.46,699.22,0.286033]
[1735683860633,0.28552665,700.46,699.22,1.35406068]
[1735683861431,0.28552665,700.46,699.24,1.06802768]
[1735683861628,0.28552665,700.46,699.25,0.28602073]
[1735683862633,0.28552665,700.46,699.25,1.35404841]
[1735683863836,0.28552665,700.46,699.26,1.06802768]
[1735683864038,0.28552665,700.46,699.27,0.28601255]
[1735683865159,0.28552665,700.46,699.31,1.06802768]
[1735683867357,0.28552665,700.46,699.32,1.06802768]
[1735683868353,0.28552665,700.46,699.27,0.28601255]
[1735683868354,0.28552665,700.46,699.31,1.06802768]
[1735683869237,0.28552665,700.46,699.27,0.28601255]
[1735683869238,0.28552665,700.46,699.29,1.06802768]
[1735683870246,0.28552665,700.46,699.33,1.06802768]
[1735683872266,1.0636599,700.45,699.33,1.06802768]
[1735683874852,1.0636599,700.45,699.3,1.06802768]
[1735683875656,1.34918655,700.46,699.29,1.06802768]
[1735683876559,1.34918655,700.46,699.28,1.06802768]
[1735683877649,1.34918655,700.46,699.29,1.06802768]
[1735683878654,0.28552665,700.46,699.27,1.35404023]
[1735683879857,1.0636599,700.45,699.28,1.06802768]
[1735683880652,1.0636599,700.45,699.27,0.28601255]
[1735683880653,1.0636599,700.44,699.27,1.35404023]
[1735683881958,1.0636599,700.43,699.28,1.06802768]
[1735683883053,1.0636599,700.44,699.28,1.06802768]
[1735683885360,1.0636599,700.4,699.35,1.06802768]
[1735683886658,1.0636599,700.4,699.27,0.28601255]
[1735683886659,1.0636599,700.39,699.34,1.06802768]
[1735683888157,0.28552665,700.46,699.27,0.28601255]
[1735683888158,1.0636599,700.3,699.27,0.28601255]
[1735683888562,1.49211068,700.29,699.27,0.28601255]
[1735683904176,0.26298138,700.28,699.27,0.28601255]
[1735683904571,1.49211068,700.29,699.27,0.28601255]
[1735683927185,2.55577058,700.29,699.27,0.28601255]
[1735683928987,1.0636599,700.26,699.27,0.28601255]
[1735683930685,1.49211068,700.29,699.27,0.28601255]
[1735683964512,1.49211068,700.29,699.29,1.06802768]
[1735683965314,1.49211068,700.29,699.31,1.06802768]
[1735683966631,1.0636599,700.27,699.35,1.06802768]
[1735683967118,1.04807201,700.27,699.35,1.06802768]
[1735683967511,1.04807201,700.27,699.36,1.06802768]
[1735683968314,1.04807201,700.27,699.37,1.06802768]
[1735683969413,1.04807201,700.27,699.36,1.06802768]
[1735683970720,1.04807201,700.27,699.37,1.06802768]
[1735683971720,1.49211068,700.29,699.32,1.06802768]
[1735683972920,1.49211068,700.29,699.33,1.06802768]
[1735683974216,1.49211068,700.29,699.37,1.06802768]
[1735683975120,1.49211068,700.29,699.35,1.06802768]
[1735683976319,1.49211068,700.29,699.34,1.06802768]
[1735683977617,1.49211068,700.29,699.32,1.06802768]
[1735683980326,1.49211068,700.29,699.35,1.06802768]
[1735683981628,1.49211068,700.29,699.37,1.06802768]
[1735683984726,1.49211068,700.29,699.33,1.06802768]
[1735683990431,1.49211068,700.29,699.27,0.28601255]
[1735683990432,1.49211068,700.29,699.37,1.06802768]
[1735683992035,1.49211068,700.29,699.38,1.06802768]
[1735683992733,1.0636599,700.45,699.38,1.06802768]
[1735683993037,1.49188679,700.41,699.38,1.06802768]
[1735683993230,0.26291896,700.4,699.38,1.06802768]
[1735683994729,1.49188679,700.41,699.38,1.06802768]
[1735683995436,1.49188679,700.41,699.27,0.28601255]
[1735683999436,0.28552665,700.46,699.27,0.28601255]
[1735684005334,1.49177488,700.58,699.27,0.28601255]
[1735684005741,0.26284847,700.57,699.27,0.28601255]
[1735684006438,1.49177488,700.58,699.27,0.28601255]
[1735684006837,0.26285355,700.57,699.27,0.28601255]
[1735684007041,1.49177488,700.58,699.27,0.28601255]
[1735684009138,0.26285196,700.57,699.27,0.28601255]
[1735684011048,0.26285196,700.57,699.37,1.06802768]
[1735684011745,0.26285196,700.57,699.27,0.28601255]
[1735684011746,0.26285196,700.57,699.36,1.06802768]
[1735684012442,1.49177488,700.58,699.36,1.06802768]
[1735684012745,1.49177488,700.58,699.27,1.35404023]
[1735684012746,1.49177488,700.58,699.35,1.06802768]
[1735684013440,1.49177488,700.58,699.29,1.06802768]
[1735684013644,1.49177488,700.58,699.3,0.28600028]
[1735684024046,1.49177488,700.58,699.32,1.06802768]
[1735684024346,1.49177488,700.58,699.33,0.28598801]
[1735684025552,1.49177488,700.58,699.37,1.06802768]
[1735684025754,1.49177488,700.58,699.38,0.28596757]
[1735684026555,1.49177488,700.58,699.38,1.35399525]
[1735684028262,1.49177488,700.58,699.39,1.06802768]
[1735684028561,1.49177488,700.58,699.4,0.28595939]
[1735684029153,1.49177488,700.58,699.41,1.06802768]
[1735684029358,1.49177488,700.58,699.41,1.35398298]
[1735684030062,1.0636599,700.95,699.44,1.06802768]
[1735684030259,1.0636599,700.95,699.45,0.28593895]
[1735684030260,1.4913114,700.75,699.45,0.28593895]
[1735684030555,1.34898695,700.95,699.45,0.28593895]
[1735684030862,1.49120489,700.75,699.45,0.28593895]
[1735684031157,1.34898695,700.95,699.45,1.35396663]
[1735684031755,0.28532705,700.95,699.45,1.35396663]
[1735684032260,1.49095998,700.94,699.45,1.35396663]
[1735684032660,1.49095998,700.94,699.45,0.28593895]
[1735684038660,0.28532705,700.95,699.45,0.28593895]
[1735684056191,1.0636599,701.87,699.45,0.28593895]
[1735684056394,1.49068323,701.15,699.45,0.28593895]
[1735684056588,0.28499365,701.77,699.45,0.28593895]
[1735684056791,0.26263012,701.76,699.45,0.28593895]
[1735684056990,1.49061938,701.15,699.45,0.28593895]
[1735684057187,0.28500584,701.74,699.45,0.28593895]
[1735684057391,0.26263638,701.73,699.45,0.28593895]
[1735684057791,0.28501802,701.71,699.45,0.28593895]
[1735684058092,0.26263638,701.7,699.45,0.28593895]
[1735684058479,1.75296849,701.7,699.45,0.28593895]
[1735684058675,0.28503021,701.68,699.45,0.28593895]
[1735684058874,0.26263638,701.67,699.45,0.28593895]
[1735684059076,0.2850424,701.65,699.45,0.28593895]
[1735684059272,0.26263638,701.64,699.45,0.28593895]
[1735684059476,0.28505458,701.62,699.45,0.28593895]
[1735684059673,0.26263638,701.61,699.45,0.28593895]
[1735684059874,0.28506677,701.59,699.45,0.28593895]
[1735684060070,0.2626294,701.58,699.45,0.28593895]
[1735684060372,0.28507896,701.56,699.45,0.28593895]
[1735684060576,0.2626294,701.55,699.45,0.28593895]
[1735684060776,0.28509115,701.53,699.45,0.28593895]
[1735684060980,0.26263705,701.52,699.45,0.28593895]
[1735684061174,0.28510334,701.5,699.45,0.28593895]
[1735684061381,0.26263705,701.49,699.45,0.28593895]
[1735684061577,0.28511554,701.47,699.45,0.28593895]
[1735684061879,0.26263705,701.46,699.45,0.28593895]
[1735684062073,0.28512367,701.45,699.45,0.28593895]
[1735684063179,0.26263085,701.44,699.45,0.28593895]
[1735684063380,0.2851318,701.43,699.45,0.28593895]
[1735684063980,0.26263155,701.42,699.45,0.28593895]
[1735684064281,0.28513993,701.41,699.45,0.28593895]
[1735684066081,0.2626302,701.4,699.45,0.28593895]
[1735684066285,0.28514806,701.39,699.45,0.28593895]
[1735684066488,0.2626302,701.38,699.45,0.28593895]
[1735684066680,0.28515619,701.37,699.45,0.28593895]
[1735684066881,0.2626302,701.36,699.45,0.28593895]
[1735684067086,0.28516432,701.35,699.49,1.06802768]
[1735684067383,0.2626302,701.34,699.51,0.28591442]
[1735684067588,0.28517245,701.33,699.51,0.28591442]
[1735684067781,0.26263529,701.32,699.51,0.28591442]
[1735684067981,0.28517245,701.33,699.51,0.28591442]
[1735684068181,0.28517245,701.33,699.51,1.3539421]
[1735684068687,1.49008749,701.32,699.51,1.3539421]
[1735684069400,1.49008749,701.32,699.51,0.28591442]
[1735684078493,1.49008749,701.32,699.53,1.06802768]
[1735684078692,1.49008749,701.32,699.55,0.28589807]
[1735684080689,1.49008749,701.32,699.81,1.06802768]
[1735684080898,1.49008749,701.32,699.83,0.28578369]
[1735684081688,1.49008749,701.32,699.83,1.35381137]
[1735684083789,1.49008749,701.32,699.84,1.06802768]
[1735684084188,1.49008749,701.32,699.85,0.28577552]
[1735684084694,1.49008749,701.32,699.85,1.3538032]
[1735684085897,1.49008749,701.32,699.85,0.28577552]
[1735684087898,1.77526401,701.32,699.85,0.28577552]
[1735684098004,0.26261594,701.31,699.85,0.28577552]
[1735684099304,0.26261594,701.31,699.94,1.06802768]
[1735684099511,0.26261158,701.3,699.94,1.06802768]
[1735684099705,0.26261158,701.29,699.94,1.06802768]
[1735684099905,0.26261158,701.28,699.94,1.06802768]
[1735684100109,1.77526401,701.32,699.94,1.06802768]
[1735684100407,0.26261841,701.31,699.93,1.06802768]
[1735684101906,0.26261841,701.31,699.95,1.06802768]
[1735684103007,0.26261841,701.31,699.94,1.06802768]
[1735684104808,0.26261479,701.3,699.94,1.06802768]
[1735684105109,0.26261479,701.29,699.93,1.06802768]
[1735684105408,1.77526401,701.32,699.93,1.06802768]
[1735684105409,0.26261479,701.28,699.93,1.06802768]
[1735684105608,0.26261479,701.27,699.93,1.06802768]
[1735684105911,0.26261479,701.26,699.93,1.06802768]
[1735684106110,1.77526401,701.32,699.85,0.28577552]
[1735684106111,0.26261479,701.25,699.94,1.06802768]
[1735684106301,0.26261479,701.24,699.94,1.06802768]
[1735684106508,0.26261479,701.23,699.94,1.06802768]
[1735684106707,0.26261479,701.22,699.94,1.06802768]
[1735684106908,0.28517652,701.32,699.94,1.06802768]
[1735684106909,1.4902417,701.23,699.94,1.06802768]
[1735684107312,1.4902417,701.23,699.93,1.06802768]
[1735684107610,0.26261654,701.22,699.93,1.06802768]
[1735684108112,1.4902417,701.23,699.94,1.06802768]
[1735684108410,0.26261654,701.22,699.94,1.06802768]
[1735684110106,1.4902417,701.23,699.94,1.06802768]
[1735684110407,1.4902417,701.23,699.85,1.3538032]
[1735684110408,1.4902417,701.23,699.95,1.06802768]
[1735684110806,0.26262218,701.22,699.95,1.06802768]
[1735684111515,0.26262218,701.22,699.91,1.06802768]
[1735684112709,1.4902417,701.23,699.91,1.06802768]
[1735684112910,0.26262906,701.22,699.96,1.06802768]
[1735684114014,0.26262906,701.22,699.92,1.06802768]
[1735684115414,0.26262992,701.21,699.92,1.06802768]
[1735684115612,0.26262992,701.2,699.92,1.06802768]
[1735684115814,1.4902417,701.23,699.92,1.06802768]
[1735684116015,0.26263036,701.22,699.92,1.06802768]
[1735684116213,0.26262731,701.21,699.92,1.06802768]
[1735684116415,0.26262731,701.2,699.92,1.06802768]
[1735684116617,1.4902417,701.23,699.92,1.06802768]
[1735684116818,0.26262919,701.22,699.91,1.06802768]
[1735684117922,0.26262919,701.22,699.92,1.06802768]
[1735684119022,0.26262919,701.22,699.93,1.06802768]
[1735684119218,1.4902417,701.23,699.93,1.06802768]
[1735684119819,1.4902417,701.23,699.95,1.06802768]
[1735684120016,0.26262345,701.22,699.95,1.06802768]
[1735684120616,0.26262345,701.22,699.99,1.06802768]
[1735684120816,1.4902417,701.23,699.99,1.06802768]
[1735684121020,0.2626207,701.22,699.99,1.06802768]
[1735684121723,0.26262079,701.21,700.01,1.06802768]
[1735684121919,2.55273404,701.23,700.01,1.06802768]
[1735684122124,0.26262061,701.22,700.01,1.06802768]
[1735684123026,1.06249234,701.21,700.04,1.06802768]
[1735684123327,0.26262061,701.2,700.04,1.06802768]
[1735684123525,0.26261946,701.19,700.04,1.06802768]
[1735684123726,0.26261946,701.18,700.04,1.06802768]
[1735684123927,1.06249234,701.21,700.04,1.06802768]
[1735684124130,0.2626179,701.2,700.04,1.06802768]
[1735684124327,0.2626179,701.19,700.04,1.06802768]
[1735684124527,1.06249234,701.14,700.12,1.06802768]
[1735684126027,1.06249234,701.14,700.13,1.06802768]
[1735684126828,1.49022043,701.17,699.85,0.28577552]
[1735684126829,1.06249234,701.15,700.12,1.06802768]
[1735684129330,1.06249234,701.14,700.13,1.06802768]
[1735684130430,1.06249234,701.15,700.12,1.06802768]
[1735684131327,1.06249234,701.15,699.85,0.28577552]
[1735684131328,1.06249234,701.16,700.11,1.06802768]
[1735684132425,1.06249234,701.15,700.11,1.06802768]
[1735684133530,1.06249234,701.16,700.11,1.06802768]
[1735684134532,1.06249234,701.17,700.12,1.06802768]
[1735684135728,1.06249234,701.16,700.11,1.06802768]
[1735684136750,1.06249234,701.15,700.14,1.06802768]
[1735684138261,1.06249234,701.14,700.15,1.06802768]
[1735684139154,1.06249234,701.18,700.1,1.06802768]
[1735684141542,1.06249234,701.16,700.12,1.06802768]
[1735684142746,1.49008749,701.26,700.13,1.06802768]
[1735684142747,1.06249234,701.17,700.13,1.06802768]
[1735684149044,1.06249234,701.13,700.18,1.06802768]
[1735684149942,1.49008749,701.26,699.85,0.28577552]
[1735684159445,1.49008749,701.26,700.03,1.06802768]
[1735684159645,1.49008749,701.26,700.04,0.28569796]
[1735684160546,1.49008749,701.26,700.19,1.06802768]
[1735684161048,0.28517652,701.32,700.19,1.06802768]
[1735684161949,0.28517652,701.32,700.2,1.06802768]
[1735684163047,0.28517652,701.32,700.21,1.06802768]
[1735684163747,0.28517652,701.32,700.2,1.06802768]
[1735684167950,0.28517652,701.32,700.22,1.06802768]
[1735684169050,0.28517652,701.32,700.19,1.06802768]
[1735684169252,0.28517652,701.32,700.19,1.35366443]
[1735684169945,0.28517652,701.32,700.19,0.28563675]
[1735684184662,0.28517652,701.32,700.19,1.35366443]
[1735684185965,0.28517652,701.32,700.2,1.06802768]
[1735684187270,0.28517652,701.32,700.31,1.06802768]
[1735684188071,0.28517652,701.32,700.29,1.06802768]
[1735684188867,0.28517652,701.32,700.2,1.06802768]
[1735684188868,0.28517652,701.32,700.28,1.06802768]
[1735684189870,0.28517652,701.32,700.27,1.06802768]
[1735684191172,0.28517652,701.32,700.29,1.06802768]
[1735684192473,0.28517652,701.32,700.19,0.28563675]
[1735684192474,0.28517652,701.32,700.31,1.06802768]
[1735684193473,0.28517652,701.32,700.19,0.28563675]
[1735684193474,0.28517652,701.32,700.29,1.06802768]
[1735684194776,0.28517652,701.32,700.19,0.28563675]
[1735684194777,0.28517652,701.32,700.32,1.06802768]
[1735684195875,0.28517652,701.32,700.33,1.06802768]
[1735684196976,0.28517652,701.32,700.19,0.28563675]
[1735684196977,0.28517652,701.32,700.36,1.06802768]
[1735684198077,0.28517652,701.32,700.4,1.06802768]
[1735684199080,0.28517652,701.32,700.41,1.06802768]
[1735684201180,0.28517652,701.32,700.4,1.06802768]
[1735684202985,0.28517652,701.32,700.19,0.28563675]
[1735684202986,0.28517652,701.32,700.42,1.06802768]
[1735684204286,0.28517652,701.32,700.41,1.06802768]
[1735684206486,0.28517652,701.32,700.39,1.06802768]
[1735684208487,0.28517652,701.32,700.42,1.06802768]
[1735684209290,0.28517652,701.32,700.31,1.06802768]
[1735684210489,0.28517652,701.32,700.29,1.06802768]
[1735684212490,0.28517652,701.32,700.3,1.06802768]
[1735684215695,0.28517652,701.32,700.28,1.06802768]
[1735684217294,0.28517652,701.32,700.19,0.28563675]
[1735684217295,0.28517652,701.32,700.26,1.06802768]
[1735684218195,0.28517652,701.32,700.19,0.28563675]
[1735684218196,0.28517652,701.32,700.21,1.06802768]
[1735684221401,0.28517652,701.32,700.22,1.06802768]
[1735684221999,0.28517652,701.32,700.21,1.06802768]
[1735684223302,0.28517652,701.32,700.27,1.06802768]
[1735684224403,0.28517652,701.32,700.28,1.06802768]
[1735684225200,0.28517652,701.32,700.23,1.06802768]
[1735684226801,0.28517652,701.32,700.28,1.06802768]
[1735684227909,0.28517652,701.32,700.19,1.35366443]
[1735684229206,0.28517652,701.32,700.19,0.28563675]
[1735684251721,0.28517652,701.32,700.28,1.06802768]
[1735684252722,0.28517652,701.32,700.19,0.28563675]
[1735684252723,1.34766886,701.32,700.29,1.06802768]
[1735684254018,1.06249234,701.29,700.31,1.06802768]
[1735684255023,0.28517652,701.32,700.2,1.06802768]
[1735684256021,0.28517652,701.32,700.21,1.06802768]
[1735684257119,0.28517652,701.32,700.22,1.06802768]
[1735684258025,0.28517652,701.32,700.21,1.06802768]
[1735684259124,0.28517652,701.32,700.22,1.06802768]
[1735684260220,0.28517652,701.32,700.19,0.28563675]
[1735684269939,1.06249234,701.27,700.26,1.06802768]
[1735684271341,0.28517652,701.32,700.21,1.06802768]
[1735684271342,1.06249234,701.29,700.21,1.06802768]
[1735684272440,1.06249234,701.31,700.21,1.06802768]
[1735684273838,1.06249234,701.3,700.21,1.06802768]
[1735684274840,1.06249234,701.3,700.2,1.06802768]
[1735684276944,1.06249234,701.31,700.2,1.06802768]
[1735684278043,1.34766886,701.32,700.2,1.06802768]
[1735684278243,1.34766886,701.32,700.19,1.35366443]
[1735684279141,1.34766886,701.32,700.19,0.28563675]
[1735684281444,1.06249234,701.3,700.22,1.06802768]
[1735684282642,1.06249234,701.29,700.22,1.06802768]
[1735684286246,1.06249234,701.29,700.23,1.06802768]
[1735684287149,1.06249234,701.28,700.24,1.06802768]
[1735684288249,1.06249234,701.25,700.29,1.06802768]
[1735684288949,1.48994395,701.24,700.29,1.06802768]
[1735684290947,1.48994395,701.24,700.3,1.06802768]
[1735684292247,1.06249234,701.23,700.3,1.06802768]
[1735684293348,1.48994395,701.24,700.3,1.06802768]
[1735684293349,1.06249234,701.22,700.3,1.06802768]
[1735684294553,1.06249234,701.21,700.31,1.06802768]
[1735684295650,1.06249234,701.19,700.29,1.06802768]
[1735684296854,1.06249234,701.2,700.3,1.06802768]
[1735684297658,1.06249234,701.21,700.31,1.06802768]
[1735684300758,1.06249234,701.2,700.31,1.06802768]
[1735684311364,1.06249234,701.21,700.31,1.06802768]
[1735684313864,1.06249234,701.21,700.32,1.06802768]
[1735684317770,2.55243629,701.24,700.28,1.06802768]
[1735684319062,1.48994395,701.24,700.26,1.06802768]
[1735684319868,2.55243629,701.24,700.27,1.06802768]
[1735684321871,1.48994395,701.24,700.19,0.28563675]
[1735684335973,0.26259862,701.23,700.19,0.28563675]
[1735684336777,1.06249234,701.2,700.19,1.35366443]
[1735684337476,1.48994395,701.24,700.19,1.35366443]
[1735684337477,1.06249234,701.19,700.19,0.28563675]
[1735684338783,1.06249234,701.2,700.19,0.28563675]
[1735684339983,1.06249234,701.19,700.19,0.28563675]
[1735684343283,1.32510324,701.18,700.19,0.28563675]
[1735684343485,0.2626109,701.17,700.19,0.28563675]
[1735684343782,0.26262273,701.16,700.19,0.28563675]
[1735684343985,1.06249234,701.18,700.19,0.28563675]
[1735684344185,1.49017257,701.16,700.19,0.28563675]
[1735684344587,2.55266491,701.16,700.19,0.28563675]
[1735684345691,1.49017257,701.16,700.19,0.28563675]
[1735684355493,1.49017257,701.16,699.93,1.06802768]
[1735684356795,1.49017257,701.16,699.89,1.06802768]
[1735684357891,1.49017257,701.16,699.62,1.06802768]
[1735684358201,1.49017257,701.16,699.63,0.28586538]
[1735684367007,1.49017257,701.16,699.67,1.06802768]
[1735684367408,0.26267674,701.15,699.67,1.06802768]
[1735684367809,0.26267674,701.15,699.74,1.06802768]
[1735684368108,0.26268144,701.14,699.75,0.28581636]
[1735684368308,0.26268144,701.13,699.75,0.28581636]
[1735684368508,0.26268144,701.12,699.75,0.28581636]
[1735684368710,0.26268144,701.11,699.75,0.28581636]
[1735684368909,1.49017257,701.16,699.75,0.28581636]
[1735684369108,0.26268259,701.15,699.75,0.28581636]
[1735684372109,0.26269711,701.14,699.75,0.28581636]
[1735684372310,0.26269711,701.13,699.75,0.28581636]
[1735684372613,0.26269711,701.12,699.75,0.28581636]
[1735684372910,1.06249234,701.15,699.75,0.28581636]
[1735684373110,0.26269727,701.14,699.75,0.28581636]
[1735684373411,0.2852538,701.13,699.75,0.28581636]
[1735684373611,0.26269727,701.12,699.75,0.28581636]
[1735684374305,0.28526194,701.11,699.75,0.28581636]
[1735684374506,0.26269727,701.1,699.75,0.28581636]
[1735684374708,0.28527007,701.09,699.75,0.28581636]
[1735684374906,0.26269727,701.08,699.75,0.28581636]
[1735684375310,1.49081095,701.07,699.75,0.28581636]